bitfinex/quotes_ETHUSD_20241223
["timestamp","ask_amount","ask_price","bid_price","bid_amount"]
[1734984508670,0.8165,3333.7,3333.5,0.07313162]
[1734984509071,0.8165,3333.7,3333.2,3.00008]
[1734984509272,0.8165,3333.7,3333.6,0.07305985]
[1734984509493,0.8165,3333.7,3332.4,3.7576]
[1734984509703,0.8165,3333.7,3333.6,0.07305985]
[1734984509911,0.8165,3333.7,3333.2,3.0001]
[1734984510123,0.8165,3333.7,3333.6,0.07305985]
[1734984510273,0.8165,3333.7,3333.1,3.0002]
[1734984510474,0.8165,3333.7,3333.6,0.07305985]
[1734984510815,0.8165,3333.7,3332.6,3.0]
[1734984510816,0.8217,3334.0,3333.5,2.99982]
[1734984511026,0.8217,3334.0,3333.8,2.99957]
[1734984511186,1.23789955,3334.1,3333.6,0.07305985]
[1734984511512,1.23789955,3334.1,3334.0,2.9994]
[1734984511711,1.23789955,3334.3,3334.2,2.99922]
[1734984511931,1.23789955,3334.3,3334.0,0.07277281]
[1734984512106,1.23789955,3334.3,3334.2,0.07262932]
[1734984512270,1.23789955,3334.3,3333.6,2.99974]
[1734984512474,0.8061,3334.2,3333.3,0.6088983]
[1734984512715,0.8061,3334.2,3333.6,2.99972]
[1734984512885,0.8061,3334.2,3333.7,2.99966]
[1734984513387,0.8061,3334.2,3333.8,2.99953]
[1734984513612,0.8061,3334.7,3333.5,3.0]
[1734984513831,0.8061,3334.7,3334.1,2.99923]
[1734984514027,0.8061,3334.7,3334.2,2.99917]
[1734984514513,1.19618489,3334.7,3333.5,3.0]
[1734984515505,1.19618489,3334.7,3333.8,2.9995]
[1734984515729,1.19618489,3334.7,3333.5,3.0]
[1734984515730,1.19618489,3334.7,3333.6,2.99976]
[1734984515919,1.19618489,3334.7,3333.9,2.99945]
[1734984516077,0.8061,3334.7,3334.2,2.99921]
[1734984516278,0.8061,3334.7,3334.2,2.9992]
[1734984517740,0.8061,3334.7,3334.3,2.99913]
[1734984518105,0.8061,3334.7,3334.4,0.07007355]
[1734984519343,0.8061,3334.7,3333.4,2.99987]
[1734984519344,0.8217,3334.6,3333.4,2.99987]
[1734984519643,0.8217,3334.4,3333.4,2.99987]
[1734984519844,0.8217,3334.4,3333.1,4.00303086]
[1734984520041,0.8217,3334.4,3333.2,3.00012]
[1734984520204,0.8217,3334.4,3333.6,2.99976]
[1734984520401,0.8217,3334.4,3333.7,2.99963]
[1734984520808,0.8217,3334.4,3333.5,2.59067899]
[1734984521140,1.08310395,3334.4,3333.5,5.59051899]
[1734984523829,0.7748,3334.3,3333.5,5.59051899]
[1734984524510,0.7748,3334.3,3333.6,2.99974]
[1734984525016,1.02605516,3334.2,3333.6,2.99974]
[1734984525778,1.02605516,3334.2,3333.8,2.99949]
[1734984525967,1.02605516,3334.2,3333.9,5.59008899]
[1734984526265,0.7748,3334.3,3333.9,5.59008899]
[1734984527669,0.7748,3334.3,3334.0,2.99939]
[1734984527818,0.7748,3334.3,3334.1,2.99928]
[1734984528015,0.7748,3334.3,3334.1,3.06968872]
[1734984528287,2.01269955,3334.6,3334.2,2.99922]
[1734984528727,1.23789955,3334.7,3334.3,2.59067899]
[1734984528929,1.23789955,3334.7,3334.6,2.99886]
[1734984529311,1.23789955,3334.7,3334.6,3.0688045]
[1734984529863,0.7737,3334.9,3334.8,2.99868]
[1734984530159,1.23789955,3335.0,3334.9,2.99859]
[1734984530666,2.05459955,3335.4,3335.0,2.99842]
[1734984530845,2.82456834,3335.4,3335.0,2.99842]
[1734984531054,2.82456834,3335.4,3335.1,0.06931254]
[1734984531765,1.58666879,3335.4,3334.5,2.99894]
[1734984531930,0.8167,3335.4,3335.2,0.0690778]
[1734984532133,0.8167,3335.4,3334.5,2.99895]
[1734984532320,0.8167,3335.4,3335.3,0.0690061]
[1734984532520,0.8167,3335.4,3334.6,2.99885]
[1734984532721,0.8167,3335.4,3335.3,0.0690061]
[1734984532922,1.32215995,3335.4,3334.6,2.99885]
[1734984533121,1.32215995,3335.4,3335.3,0.0690061]
[1734984533465,1.32215995,3335.4,3334.7,2.99876]
[1734984533764,1.32215995,3335.4,3334.8,0.06936463]
[1734984533980,1.32215995,3335.4,3334.5,3.0]
[1734984533981,2.56436841,3335.4,3334.5,3.0]
[1734984534118,2.05890846,3335.4,3334.9,3.06929292]
[1734984534324,2.05890846,3335.4,3335.2,2.99831]
[1734984534712,1.24220846,3335.4,3335.3,3.06692429]
[1734984535359,1.24220846,3335.8,3335.4,2.99806]
[1734984535563,1.24220846,3335.8,3335.5,2.99797]
[1734984535735,1.24220846,3335.8,3335.5,3.06652091]
[1734984536577,0.8326,3335.9,3335.5,3.06652091]
[1734984537213,0.8326,3335.9,3335.6,2.99787]
[1734984537666,0.8326,3335.9,3335.7,0.06828767]
[1734984538239,0.8326,3335.9,3334.8,3.0]
[1734984538425,0.8324,3335.7,3334.8,5.99863]
[1734984539878,1.02635381,3335.6,3334.8,5.99863]
[1734984540980,1.02635381,3335.6,3334.8,5.59067899]
[1734984541185,1.02635381,3335.6,3335.1,3.0]
[1734984541922,1.02635381,3335.6,3335.1,2.99836]
[1734984542368,1.02635381,3335.6,3334.9,3.0]
[1734984542570,1.02635381,3335.6,3335.2,2.99824]
[1734984542732,1.02635381,3335.6,3335.3,2.99822]
[1734984542942,1.02635381,3335.6,3335.4,2.99811]
[1734984543147,1.02635381,3335.6,3335.5,8.58872899]
[1734984543930,1.24220846,3336.1,3336.0,2.9976]
[1734984544451,1.24220846,3336.1,3336.0,5.9976]
[1734984544780,1.24220846,3336.1,3336.0,6.29736]
[1734984545156,1.99460846,3336.7,3336.1,2.99748]
[1734984545640,1.99460846,3336.7,3336.2,3.0]
[1734984546232,0.7524,3336.7,3336.2,3.0]
[1734984546633,0.7524,3336.7,3336.3,2.59067899]
[1734984546883,0.7524,3336.7,3336.4,3.0]
[1734984547066,0.7524,3336.7,3335.7,2.59067899]
[1734984547270,0.7572,3336.6,3335.7,2.59067899]
[1734984547586,0.7572,3336.4,3335.7,2.59067899]
[1734984547767,0.7572,3336.4,3335.8,0.06501195]
[1734984548579,1.02511171,3336.3,3335.8,0.06501195]
[1734984548782,1.02511171,3336.3,3335.7,1.40333736]
[1734984548932,1.02511171,3336.3,3335.9,0.06277322]
[1734984549132,1.52844784,3336.3,3335.9,0.06277322]
[1734984549364,1.02511171,3336.3,3336.0,2.59067899]
[1734984549579,0.7572,3336.4,3336.0,2.65338054]
[1734984549782,0.7572,3336.4,3336.1,2.9975]
[1734984550079,0.7572,3336.4,3336.3,2.59067899]
[1734984550383,1.24220846,3336.5,3336.3,2.65333331]
[1734984550597,1.24220846,3336.5,3336.4,3.0]
[1734984550753,1.24220846,3336.5,3336.4,0.06258267]
[1734984550948,0.7572,3336.8,3336.4,2.59067899]
[1734984551335,0.7572,3336.8,3336.4,2.65326166]
[1734984551532,0.3791068,3336.7,3336.4,0.06258267]
[1734984551846,0.7617,3336.6,3335.7,3.0]
[1734984552046,0.7617,3336.6,3336.0,2.59067899]
[1734984552288,0.7617,3336.6,3336.0,5.58826899]
[1734984552437,0.7617,3336.6,3336.1,0.05822746]
[1734984552640,0.7617,3336.6,3336.1,3.05572746]
[1734984553185,0.7617,3336.6,3336.1,0.05822746]
[1734984554489,0.8063,3336.5,3335.5,2.59067899]
[1734984554778,0.8063,3336.8,3336.3,2.59067899]
[1734984554983,2.04850846,3337.2,3336.5,2.99714]
[1734984555165,2.04850846,3337.2,3336.3,3.38217899]
[1734984555166,1.24220846,3337.2,3336.8,2.99687]
[1734984555490,1.24220846,3337.2,3337.0,2.99669]
[1734984555834,1.24220846,3337.2,3337.1,0.05758765]
[1734984556092,1.24220846,3337.2,3337.1,5.64487664]
[1734984556380,1.24220846,3337.2,3337.1,2.99661]
[1734984556586,0.8063,3337.8,3337.3,3.0]
[1734984556738,1.19683578,3337.8,3337.3,3.0]
[1734984556934,1.19683578,3337.8,3337.4,0.05737281]
[1734984557137,1.24220846,3337.9,3337.1,0.02996393]
[1734984557395,1.24220846,3337.9,3337.3,3.05316245]
[1734984557594,1.24220846,3337.9,3337.6,2.99611]
[1734984557797,1.24220846,3337.9,3337.7,3.05316245]
[1734984557950,1.24220846,3337.9,3337.8,5.99598]
[1734984558285,1.24220846,3337.9,3337.8,6.05235838]
[1734984558435,1.24220846,3338.6,3337.9,3.0]
[1734984558682,0.31711471,3338.4,3337.9,3.0]
[1734984558839,1.24220846,3338.6,3338.2,3.7915]
[1734984559064,1.24220846,3338.6,3338.5,9.04851245]
[1734984559648,1.24220846,3338.6,3338.5,9.59851245]
[1734984559851,3.75435705,3339.4,3338.5,9.59851245]
[1734984559852,1.24220846,3339.7,3338.5,7.42166245]
[1734984560040,1.24220846,3339.7,3339.0,6.04798245]
[1734984560250,0.39201578,3339.6,3339.1,2.99477]
[1734984560479,0.39201578,3339.6,3339.1,3.04819091]
[1734984560641,0.39201578,3339.6,3339.1,0.05342091]
[1734984561041,0.39201578,3339.6,3339.2,3.81322]
[1734984561237,0.39201578,3339.6,3339.2,3.86446948]
[1734984561557,0.39201578,3339.6,3339.2,0.86974948]
[1734984561755,0.8211,3339.9,3339.2,0.86974948]
[1734984562086,0.8211,3340.4,3339.4,2.99452]
[1734984562269,0.8211,3340.4,3339.3,3.0]
[1734984562507,0.8211,3340.4,3339.5,0.05089164]
[1734984562813,2.06330846,3340.8,3339.6,3.04517013]
[1734984563021,0.39201578,3340.7,3339.6,3.04517013]
[1734984563178,0.8211,3340.8,3339.6,3.04517013]
[1734984563672,0.8211,3340.8,3339.7,2.99424]
[1734984563877,0.8211,3340.8,3339.9,0.59002379]
[1734984564305,0.8211,3340.8,3340.0,0.0504816]
[1734984566274,0.8211,3341.8,3340.0,0.08041978]
[1734984566605,0.50633085,3341.7,3340.0,0.0504816]
[1734984566805,0.50633085,3341.7,3340.1,0.04845048]
[1734984567398,3.7562,3341.6,3340.1,0.04845048]
[1734984567608,0.7636,3341.6,3340.1,0.04845048]
[1734984567945,0.7636,3341.6,3340.5,2.9935]
[1734984568292,0.7636,3341.6,3340.6,3.04149581]
[1734984569725,0.7636,3341.6,3340.6,0.04803581]
[1734984570128,0.7636,3341.6,3340.4,2.99363]
[1734984570331,0.7636,3341.6,3340.7,0.04657512]
[1734984570640,0.7636,3341.6,3340.4,2.99363]
[1734984570641,0.7636,3341.6,3340.8,0.04650366]
[1734984570842,0.7636,3341.6,3340.4,0.61410379]
[1734984570997,0.7636,3341.6,3340.9,0.0464322]
[1734984571193,0.7636,3341.6,3340.4,0.61410379]
[1734984571429,0.7636,3341.6,3341.0,0.04636075]
[1734984571628,0.7636,3341.6,3340.4,0.61410379]
[1734984571949,0.7636,3341.6,3341.1,0.0462893]
[1734984572113,0.7636,3341.6,3340.4,0.61410379]
[1734984572648,0.816,3341.4,3340.5,0.04671806]
[1734984572815,0.816,3341.2,3339.8,0.7946]
[1734984573018,0.816,3341.2,3340.6,0.04664659]
[1734984573358,0.816,3340.9,3339.6,0.59819747]
[1734984573697,0.816,3340.9,3339.7,0.04728997]
[1734984573904,0.816,3340.9,3339.8,2.99418]
[1734984574229,0.816,3340.9,3339.9,0.04740943]
[1734984574437,0.816,3340.9,3339.9,0.8083]
[1734984574601,0.816,3340.9,3340.0,0.04733793]
[1734984575353,0.816,3340.9,3340.1,2.99385]
[1734984575504,0.816,3340.9,3340.2,2.99378]
[1734984575705,0.816,3340.9,3340.2,0.04714723]
[1734984576047,7.12999221,3342.1,3340.5,2.99351]
[1734984576048,0.8115,3341.8,3340.5,2.99351]
[1734984576201,0.8115,3341.8,3340.3,3.04079575]
[1734984576545,0.8115,3341.8,3340.0,2.99401]
[1734984576546,0.8115,3341.8,3340.6,0.04684701]
[1734984576718,0.8115,3341.8,3340.5,2.99355]
[1734984576917,0.8115,3341.8,3340.7,0.04677554]
[1734984577134,0.8115,3341.8,3340.6,0.04684701]
[1734984577442,0.8115,3341.8,3340.7,0.04677554]
[1734984577667,0.38115,3341.7,3340.7,0.04677554]
[1734984578020,0.8115,3341.6,3339.9,0.8083]
[1734984578221,0.8115,3341.6,3340.8,0.04665158]
[1734984578465,0.8115,3341.6,3340.1,0.61105957]
[1734984578761,0.8115,3341.6,3340.2,0.04702792]
[1734984579166,0.419265,3341.5,3340.2,0.04702792]
[1734984579339,0.8115,3341.6,3340.3,2.99372]
[1734984579541,0.8115,3341.6,3340.4,0.04688496]
[1734984580069,0.8115,3341.6,3340.6,0.8317]
[1734984580273,0.8115,3342.0,3341.4,2.99267]
[1734984580418,0.8115,3342.0,3341.5,2.99265]
[1734984580627,0.8115,3342.0,3341.5,0.0462803]
[1734984580823,0.8115,3342.0,3341.4,2.99273]
[1734984581019,0.8115,3342.5,3341.6,0.04607049]
[1734984581218,0.8115,3342.8,3342.2,2.99204]
[1734984581662,0.8115,3342.8,3342.3,3.03748109]
[1734984581838,1.24220846,3343.0,3342.3,3.03748109]
[1734984582039,1.24220846,3343.0,3342.3,0.04556109]
[1734984582273,0.8115,3343.1,3342.3,0.04556109]
[1734984582274,0.39105578,3342.9,3342.3,0.04556109]
[1734984582584,0.8115,3343.1,3342.3,0.04556109]
[1734984582880,0.8115,3343.1,3342.3,3.03747109]
[1734984583054,0.8115,3343.1,3342.3,0.04556109]
[1734984583251,0.8148,3344.0,3342.3,0.04556109]
[1734984584138,0.8148,3344.0,3342.5,2.99171]
[1734984584334,0.42033193,3343.9,3342.6,0.0447126]
[1734984584539,0.8148,3344.0,3342.6,0.0447126]
[1734984584887,0.8148,3344.0,3342.6,3.80152]
[1734984585087,0.8148,3344.0,3342.7,0.04459831]
[1734984585273,0.8148,3344.0,3343.2,2.99114]
[1734984585579,0.8148,3344.0,3343.3,0.04416059]
[1734984585764,0.8148,3344.0,3343.3,0.83026059]
[1734984586390,0.8148,3344.0,3343.3,0.04416059]
[1734984586540,0.8148,3344.0,3342.4,3.7861]
[1734984586541,1.1866698,3343.9,3342.4,3.7861]
[1734984586745,0.8065,3343.7,3342.5,0.04456471]
[1734984587940,0.8065,3343.7,3342.5,0.6520772]
[1734984588743,0.8065,3343.7,3342.5,0.04456471]
[1734984588947,0.8065,3343.7,3342.2,0.55]
[1734984589151,0.8065,3343.7,3342.5,2.99176]
[1734984589364,1.2932887,3343.7,3342.6,0.30365628]
[1734984589596,0.8065,3343.7,3342.6,0.30365628]
[1734984589897,0.8065,3343.7,3342.8,3.7835]
[1734984590251,0.8065,3343.7,3342.9,0.04286561]
[1734984591795,0.8065,3343.7,3343.0,2.9913]
[1734984592002,0.8065,3343.7,3343.0,0.04279424]
[1734984592169,0.8065,3343.7,3342.7,0.8321]
[1734984592500,0.8065,3343.7,3342.8,0.48330888]
[1734984592651,0.8065,3343.7,3342.9,2.99133]
[1734984592850,0.8065,3343.7,3342.9,3.03419561]
[1734984593055,0.8065,3343.7,3343.0,2.99128]
[1734984593297,0.8065,3343.7,3343.1,2.99121]
[1734984593501,0.7796,3344.1,3343.3,2.99104]
[1734984593876,0.7796,3344.1,3343.4,3.03346882]
[1734984594080,0.7796,3344.1,3343.5,2.99085]
[1734984594260,0.7796,3343.5,3343.4,0.04250882]
[1734984594461,0.7796,3343.4,3341.4,0.8181]
[1734984594777,0.8135,3343.1,3341.4,0.8181]
[1734984594996,0.8135,3343.0,3341.4,0.8181]
[1734984595193,3.8135,3343.0,3341.4,0.8181]
[1734984595360,0.8135,3342.9,3341.4,0.8181]
[1734984595892,0.759,3342.8,3341.5,0.61050894]
[1734984596269,0.759,3342.8,3340.9,3.81846]
[1734984596270,0.759,3342.6,3340.9,3.81846]
[1734984596478,2.99171,3342.6,3341.0,0.381846]
[1734984596815,0.8144,3342.4,3341.2,0.60511205]
[1734984597018,3.0,3342.5,3341.2,0.60511205]
[1734984597189,0.8144,3342.2,3340.5,3.81215]
[1734984597388,2.99206,3342.2,3340.8,0.58496363]
[1734984597617,0.8144,3342.2,3340.8,0.58496363]
[1734984597807,0.7679,3342.0,3340.8,0.58496363]
[1734984600482,0.7679,3342.0,3340.0,0.8284]
[1734984600483,0.8213,3341.7,3340.0,0.8284]
[1734984600684,3.0,3341.6,3340.0,0.8284]
[1734984600902,0.8213,3341.5,3340.1,0.04259706]
[1734984601225,0.8213,3341.5,3340.0,0.8284]
[1734984601226,0.8213,3341.5,3340.5,0.58790194]
[1734984601519,0.8213,3341.5,3340.6,0.35815419]
[1734984601694,0.8213,3341.5,3340.6,0.40039386]
[1734984602279,0.8213,3341.5,3340.6,0.04223967]
[1734984602926,0.8213,3341.5,3340.7,0.8081]
[1734984603309,0.8213,3341.5,3340.8,0.04209674]
[1734984604037,1.24220846,3342.2,3341.8,2.99237]
[1734984604181,1.24220846,3342.2,3341.9,2.99229]
[1734984604379,1.24220846,3342.2,3342.1,5.99213]
[1734984604720,1.24220846,3342.2,3342.1,3.81809814]
[1734984605035,0.88884944,3342.2,3342.1,6.81809814]
[1734984605325,0.88884944,3343.1,3342.3,2.99189]
[1734984605735,0.88884944,3343.1,3342.4,0.04095395]
[1734984605926,0.88884944,3343.1,3342.5,0.3032844]
[1734984606281,0.88884944,3343.1,3342.6,0.04081118]
[1734984606537,0.8277,3343.4,3342.6,0.04081118]
[1734984607892,0.8277,3343.4,3342.7,2.99158]
[1734984608088,0.8277,3343.4,3342.7,2.9867305]
[1734984608288,0.8277,3343.4,3342.7,3.31573199]
[1734984608714,0.8277,3343.4,3342.7,0.36996529]
[1734984608931,0.8277,3343.4,3342.7,0.0409638]
[1734984609234,0.8277,3343.4,3342.1,0.7848]
[1734984609638,0.8277,3343.4,3342.2,0.04132074]
[1734984610190,0.8277,3343.4,3342.3,2.99191]
[1734984610392,0.8277,3343.4,3342.4,3.04073936]
[1734984610592,0.8277,3343.4,3342.4,3.7224843]
[1734984611226,0.8277,3343.4,3342.4,1.33267594]
[1734984611438,0.7796,3343.7,3342.9,2.99133]
[1734984611946,0.7796,3343.7,3343.0,3.03161633]
[1734984612293,0.7796,3343.7,3343.0,0.04030633]
[1734984612490,0.7796,3343.7,3342.8,2.99148]
[1734984612696,0.7796,3343.7,3343.1,0.04019208]
[1734984612911,0.7796,3343.7,3342.9,2.9914]
[1734984613109,0.7796,3343.7,3343.2,0.04012072]
[1734984613414,0.7796,3343.7,3343.3,0.03999218]
[1734984613612,0.7796,3343.7,3342.8,0.59807657]
[1734984613810,0.7796,3343.7,3342.7,2.99156]
[1734984613811,0.7796,3343.7,3343.4,0.03991606]
[1734984614046,0.7796,3343.7,3342.5,3.79284]
[1734984614227,0.7796,3343.7,3343.5,0.03982089]
[1734984614543,0.7796,3343.7,3342.5,3.79279]
[1734984615045,0.7796,3343.7,3342.6,0.04046316]
[1734984615274,0.7796,3343.7,3342.7,3.4366435]
[1734984615434,0.7796,3343.7,3342.8,2.9915]
[1734984615762,0.7796,3343.7,3342.8,0.0403347]
[1734984616165,0.7796,3343.7,3343.1,2.99123]
[1734984616463,0.7796,3343.7,3343.2,0.04000635]
[1734984616763,1.23950161,3343.9,3343.2,1.14422999]
[1734984616969,1.23950161,3343.9,3343.2,3.84110635]
[1734984617137,2.01910161,3344.1,3343.2,3.84110635]
[1734984617937,2.01910161,3344.1,3343.2,3.04000635]
[1734984618579,0.7796,3344.1,3343.2,3.04000635]
[1734984618781,0.7686,3343.9,3343.2,0.04000635]
[1734984619132,0.7686,3343.9,3342.7,3.0]
[1734984619437,0.7686,3343.9,3343.2,3.0]
[1734984619636,0.7686,3343.9,3343.0,3.0]
[1734984619878,0.7686,3343.9,3343.3,0.0381602]
[1734984619879,1.02593589,3343.8,3343.3,0.0381602]
[1734984620179,1.02593589,3343.8,3343.2,3.0]
[1734984620363,1.02593589,3343.8,3342.9,2.99141]
[1734984620564,1.02593589,3343.8,3343.5,2.9908]
[1734984620764,1.02593589,3343.8,3343.3,0.7631]
[1734984620966,1.02593589,3343.8,3343.7,5.99069]
[1734984621284,1.02593589,3343.8,3343.7,6.02858865]
[1734984621437,4.71216305,3344.7,3343.7,0.03789865]
[1734984621438,1.23950161,3344.3,3343.7,0.03789865]
[1734984621638,1.23950161,3344.3,3343.5,3.61317317]
[1734984621941,0.7984,3344.2,3343.8,0.03767963]
[1734984622169,0.7984,3344.2,3343.5,0.61317317]
[1734984622371,1.23950161,3344.3,3343.9,2.99043]
[1734984622553,1.23950161,3344.3,3344.0,3.0]
[1734984622780,1.23950161,3344.3,3344.0,3.03753697]
[1734984622983,1.23950161,3344.3,3344.0,0.03753697]
[1734984623183,1.02755882,3344.5,3344.2,2.99025]
[1734984623500,1.02755882,3344.5,3344.3,0.03732303]
[1734984623704,1.02755882,3344.5,3344.2,2.99025]
[1734984623995,1.02755882,3344.5,3344.4,0.03725172]
[1734984624155,1.02755882,3344.5,3344.3,0.03732303]
[1734984624351,1.02755882,3344.5,3344.4,0.03725172]
[1734984624558,1.02755882,3344.5,3343.9,5.99051]
[1734984624799,1.02755882,3344.5,3343.9,6.670771]
[1734984624994,1.02755882,3344.5,3344.0,0.03753697]
[1734984625297,0.168606,3344.7,3343.8,3.0]
[1734984625498,0.168606,3344.7,3344.1,0.03746565]
[1734984625803,0.7673,3344.1,3342.0,1.87385548]
[1734984626002,3.05316245,3343.2,3342.0,2.68595548]
[1734984626204,1.81906571,3343.1,3342.0,2.47464077]
[1734984626518,0.7673,3342.7,3342.0,1.87385548]
[1734984626887,0.7673,3342.7,3341.3,0.8121]
[1734984627268,0.7673,3342.7,3341.5,2.99266]
[1734984627584,0.7673,3342.7,3341.4,0.58711746]
[1734984627820,0.38204625,3342.6,3341.4,0.58711746]
[1734984627965,6.04504245,3342.4,3341.3,0.8121]
[1734984628287,0.7673,3342.3,3341.0,3.8121]
[1734984628461,0.7673,3342.3,3341.0,0.8121]
[1734984629112,1.24282811,3342.5,3342.1,2.9921]
[1734984629421,3.81258981,3342.2,3342.1,0.29921]
[1734984629771,3.81258981,3342.2,3341.6,2.99257]
[1734984629967,3.81258981,3342.2,3341.4,3.80045]
[1734984630193,3.81258981,3342.2,3342.1,3.79983]
[1734984630396,1.24282811,3343.0,3342.1,0.8077]
[1734984630796,1.24282811,3343.0,3342.9,2.99141]
[1734984630997,1.24282811,3343.0,3342.6,2.99163]
[1734984631315,3.12863088,3343.5,3342.2,3.372011]
[1734984631316,1.24282811,3343.3,3342.8,2.99144]
[1734984631613,1.24282811,3343.3,3342.8,3.79914]
[1734984632880,1.24282811,3343.3,3342.9,2.99136]
[1734984633085,3.2812047,3343.6,3342.9,2.99136]
[1734984633086,0.7783,3343.6,3342.9,2.99136]
[1734984633485,0.7783,3343.6,3342.9,0.43925918]
[1734984633688,1.24282811,3343.8,3343.1,2.99121]
[1734984633875,1.24282811,3343.8,3343.2,2.99113]
[1734984634101,1.24282811,3343.9,3343.4,2.99089]
[1734984634449,1.24282811,3343.9,3343.2,2.99113]
[1734984635409,3.0,3344.1,3343.2,2.99113]
[1734984635732,0.98616774,3344.1,3343.2,2.99113]
[1734984636539,0.98616774,3344.1,3343.3,0.7918]
[1734984636718,0.762,3344.2,3343.5,2.99082]
[1734984637120,0.762,3344.2,3343.6,0.06600009]
[1734984637433,0.762,3344.2,3343.4,2.99088]
[1734984637636,0.762,3344.2,3343.7,0.06592783]
[1734984637892,0.762,3344.2,3343.6,2.99078]
[1734984638046,1.24282811,3344.4,3343.8,0.7848]
[1734984638349,1.24282811,3344.4,3344.3,2.99016]
[1734984638651,1.24282811,3344.4,3344.3,3.71871769]
[1734984638817,1.24282811,3344.4,3344.3,3.78414542]
[1734984639318,1.24282811,3344.4,3344.3,7.33414542]
[1734984639515,0.32712581,3344.6,3344.5,6.53998]
[1734984639699,0.32712581,3344.6,3344.5,7.34888]
[1734984639905,0.168606,3344.7,3344.6,3.55]
[1734984640220,0.168606,3344.7,3344.6,6.60471558]
[1734984640438,0.168606,3344.7,3344.6,7.74030386]
[1734984641260,0.168606,3344.7,3344.6,4.19030386]
[1734984641553,0.168606,3344.7,3344.6,1.20041386]
[1734984641771,0.168606,3344.7,3344.6,0.06482558]
[1734984642080,0.168606,3344.7,3344.5,4.40477615]
[1734984642237,0.168606,3344.7,3344.6,0.06452589]
[1734984642448,0.168606,3344.7,3344.5,4.40477615]
[1734984642768,0.168606,3344.7,3344.6,3.05441589]
[1734984642970,0.168606,3344.7,3344.6,3.50133809]
[1734984645421,0.168606,3344.7,3344.6,4.08122947]
[1734984645677,0.168606,3344.7,3344.6,7.05133809]
[1734984646327,6e-06,3344.7,3344.6,7.84373809]
[1734984650469,6e-06,3344.7,3344.6,4.29373809]
[1734984650940,6e-06,3344.7,3344.6,0.06452589]
[1734984651478,6e-06,3344.7,3344.6,0.06319721]
[1734984651776,0.832706,3344.7,3344.6,0.06319721]
[1734984651976,0.832706,3344.7,3343.5,0.776]
[1734984652346,0.832706,3344.7,3343.6,0.06391958]
[1734984652526,0.6822396,3344.6,3343.6,0.06391958]
[1734984652872,0.7772,3344.4,3343.6,0.06391958]
[1734984653280,0.7772,3344.4,3343.3,2.99097]
[1734984653503,0.7772,3344.4,3343.7,0.06384733]
[1734984653643,0.7772,3344.4,3343.3,2.99097]
[1734984653836,0.7772,3344.4,3343.8,0.06377507]
[1734984654053,0.7772,3344.4,3343.4,3.367577]
[1734984654258,0.7772,3344.4,3343.9,0.06370283]
[1734984654552,0.7772,3344.4,3343.4,3.367577]
[1734984654752,0.7772,3344.4,3344.0,0.06363058]
[1734984654956,1.1539146,3344.4,3343.4,0.376697]
[1734984655159,1.1539146,3344.4,3343.7,0.58742984]
[1734984655494,1.1539146,3344.4,3343.8,0.06377507]
[1734984655853,1.1539146,3344.4,3343.2,0.776]
[1734984655854,0.8118,3344.1,3342.8,3.7523]
[1734984656097,2.99026,3344.2,3342.4,2.99177]
[1734984656098,2.99069,3343.8,3342.4,0.7608]
[1734984656274,0.8118,3344.0,3342.9,0.0644255]
[1734984656590,3.8028,3343.4,3342.0,2.99213]
[1734984656809,3.8028,3343.4,3342.5,0.60301356]
[1734984656968,0.38028,3343.3,3342.5,0.60301356]
[1734984657172,0.7505,3343.1,3342.6,0.06464239]
[1734984657367,0.7505,3343.1,3341.6,0.7596]
[1734984657368,0.7505,3343.1,3342.3,0.58868322]
[1734984657785,0.7505,3343.1,3342.4,0.064787]
[1734984657989,0.7505,3343.3,3342.4,0.064787]
[1734984658308,3.74213,3342.7,3341.2,2.99286]
[1734984658505,3.374213,3342.6,3341.1,0.7596]
[1734984658660,3.374213,3342.6,3341.3,0.06558269]
[1734984658661,0.7505,3342.5,3341.3,0.06558269]
[1734984658861,0.7505,3342.5,3341.1,3.7526]
[1734984659062,3.74233,3342.5,3341.4,0.06551033]
[1734984659273,3.0,3342.4,3341.2,0.06565505]
[1734984659469,0.7116543,3342.3,3341.5,0.06543798]
[1734984659839,0.7505,3342.5,3341.4,2.9927]
[1734984659971,0.7505,3342.5,3341.6,0.06674096]
[1734984660178,0.7505,3342.5,3341.5,0.06681331]
[1734984660426,0.7505,3342.5,3341.7,0.06666862]
[1734984660607,0.7505,3342.5,3341.6,0.06674096]
[1734984660915,0.8155,3342.1,3341.7,0.06666862]
[1734984661117,2.99233,3341.9,3341.7,0.06666862]
[1734984661318,0.8155,3341.8,3340.4,0.7538]
[1734984661819,0.8155,3341.8,3340.5,0.0691503]
[1734984661972,0.8155,3341.8,3340.5,0.58532548]
[1734984662168,6.04087286,3341.6,3340.5,0.58532548]
[1734984662430,0.8155,3341.4,3340.5,0.58532548]
[1734984662577,0.8155,3340.7,3339.3,2.99462]
[1734984662780,3.04824286,3340.4,3339.3,2.99462]
[1734984662981,0.809,3340.3,3339.4,0.06996594]
[1734984663202,0.809,3340.3,3338.3,3.04824286]
[1734984663203,3.80274,3340.3,3338.7,0.7606]
[1734984663516,0.68509829,3340.2,3339.2,0.59985]
[1734984664023,0.7854,3339.9,3338.5,2.99531]
[1734984664241,0.7854,3339.9,3339.3,0.07003839]
[1734984664375,0.7854,3339.9,3338.7,0.58719063]
[1734984664770,0.7854,3339.9,3338.9,2.99496]
[1734984665076,0.7854,3339.9,3339.0,0.42961018]
[1734984665540,0.7967,3340.9,3339.3,2.99458]
[1734984665821,2.036398,3340.9,3339.5,2.9944]
[1734984666023,2.036398,3340.9,3339.9,2.99408]
[1734984666188,2.036398,3340.9,3339.7,2.99427]
[1734984666524,2.036398,3340.9,3340.1,3.79462]
[1734984666834,1.239698,3340.9,3340.4,2.99364]
[1734984666977,0.8243,3341.3,3340.4,2.99364]
[1734984667180,0.8243,3341.3,3340.5,0.30640753]
[1734984667610,0.8243,3341.3,3340.4,2.99362]
[1734984667813,0.8243,3341.3,3340.6,0.07014571]
[1734984668008,0.8243,3341.3,3340.8,2.99327]